bitfinex/quotes_SOLUSD_20241226
["timestamp","ask_amount","ask_price","bid_price","bid_amount"]
[1735250254717,0.2908156,190.1,190.02,0.12549]
[1735250254890,0.2908156,190.1,189.94,3.9348]
[1735250255090,0.2908156,190.1,189.95,7.79464027]
[1735250255409,20.2908156,190.1,189.95,7.79464027]
[1735250258520,20.2908156,190.1,189.94,3.9348]
[1735250258700,20.2908156,190.1,189.94,7.79464027]
[1735250259523,20.2908156,190.1,189.95,0.12549]
[1735250260615,20.2908156,190.1,189.98,7.92013027]
[1735250261120,20.2908156,190.1,189.98,0.12549]
[1735250263413,20.2908156,190.1,189.97,7.79464027]
[1735250263619,20.2908156,190.1,189.92,6.3423]
[1735250263822,20.2908156,190.1,189.95,0.12549]
[1735250264113,3.6175,190.09,189.92,14.13694027]
[1735250264321,0.2908156,190.08,189.92,6.3423]
[1735250264690,0.2908156,190.08,189.93,0.12549]
[1735250265290,30.0047,190.06,189.92,6.3423]
[1735250265511,0.2908156,190.05,189.9,7.79464027]
[1735250265707,0.2908156,190.05,189.89,7.79464027]
[1735250265904,0.2908156,190.05,189.9,0.12549]
[1735250266422,0.12549,190.04,189.87,6.4303]
[1735250266604,20.0,190.02,189.88,7.79464027]
[1735250266795,0.2908156,190.01,189.89,7.79464027]
[1735250267725,0.2908156,190.02,189.9,0.12549]
[1735250268824,0.2908156,190.02,189.92,0.12549]
[1735250269003,0.2908156,190.02,189.9,7.79464027]
[1735250269932,0.2908156,190.02,189.91,7.92013027]
[1735250270430,0.2908156,190.02,189.94,7.79464027]
[1735250271126,0.2908156,190.02,189.94,0.12549]
[1735250271932,20.0,190.01,189.94,0.12549]
[1735250272121,0.2908156,190.0,189.94,0.12549]
[1735250272730,0.2908156,190.02,189.94,0.12549]
[1735250272907,0.2908156,190.02,189.91,7.79464027]
[1735250273102,0.2908156,190.02,189.89,7.79464027]
[1735250273324,20.2908156,190.02,189.87,14.22494027]
[1735250274942,20.0,189.98,189.88,0.12549]
[1735250275108,0.2908156,189.97,189.88,7.92013027]
[1735250275908,0.2908156,190.0,189.88,7.92013027]
[1735250276631,0.2908156,190.0,189.89,7.79464027]
[1735250276935,0.2908156,190.01,189.92,0.12549]
[1735250277926,0.2908156,190.02,189.93,0.12549]
[1735250278232,0.2908156,190.02,189.95,0.12549]
[1735250280916,3.9369,190.03,189.96,7.92013027]
[1735250281116,3.9369,190.03,189.98,7.79464027]
[1735250281335,3.9369,190.03,189.99,0.12549]
[1735250281625,3.5932,190.07,189.99,0.12549]
[1735250281802,0.2908156,190.06,189.99,0.12549]
[1735250282008,0.2908156,190.06,190.0,0.12549]
[1735250283041,0.2908156,190.06,189.99,0.12549]
[1735250284031,0.2908156,190.06,189.94,6.3117]
[1735250284336,0.2908156,190.06,189.93,7.79464027]
[1735250284535,0.2908156,190.06,189.95,7.92013027]
[1735250285006,0.2908156,190.06,189.97,0.12549]
[1735250289246,0.2908156,190.06,189.95,7.79464027]
[1735250289412,0.2908156,190.06,189.94,7.79464027]
[1735250289610,0.2908156,190.06,189.92,7.79464027]
[1735250289912,0.2908156,190.06,189.93,7.79464027]
[1735250290523,0.2908156,190.06,189.94,7.92013027]
[1735250290729,0.2908156,190.06,189.96,0.12549]
[1735250291454,0.2908156,190.06,189.97,7.92013027]
[1735250292249,0.2908156,190.06,189.94,0.12549]
[1735250292417,0.2908156,190.06,189.96,7.79464027]
[1735250292620,0.2908156,190.06,189.97,0.12549]
[1735250293437,0.2908156,190.06,189.95,7.79464027]
[1735250294723,0.2908156,190.06,189.97,0.12549]
[1735250294923,0.2908156,190.06,189.97,7.92013027]
[1735250295551,0.2908156,190.06,189.99,0.12549]
[1735250301054,0.2908156,190.06,189.99,7.79464027]
[1735250301262,0.2908156,190.06,189.98,7.79464027]
[1735250301762,0.2908156,190.06,189.99,0.12549]
[1735250305366,0.2908156,190.06,190.0,0.12549]
[1735250306160,0.2908156,190.06,189.98,7.92013027]
[1735250306361,0.2908156,190.06,189.98,0.12549]
[1735250306538,0.2908156,190.06,189.99,7.79464027]
[1735250306740,0.2908156,190.06,190.0,0.12549]
[1735250313969,0.2908156,190.06,189.96,7.79464027]
[1735250314961,0.2908156,190.06,189.97,0.12549]
[1735250316265,0.2908156,190.06,189.97,7.92013027]
[1735250316472,0.2908156,190.06,189.98,0.12549]
[1735250317472,0.2908156,190.06,189.97,0.12549]
[1735250317646,10.5898,190.05,189.94,7.79464027]
[1735250317850,20.0,190.02,189.94,7.79464027]
[1735250318071,0.2908156,190.01,189.94,7.79464027]
[1735250318674,0.2908156,190.01,189.95,0.12549]
[1735250318971,0.2908156,190.01,189.95,7.92013027]
[1735250320077,0.2908156,190.01,189.95,0.12549]
[1735250322874,0.2908156,190.01,189.91,20.0]
[1735250323065,0.2908156,190.01,189.94,7.79464027]
[1735250324976,3.924,190.0,189.94,0.12549]
[1735250325186,0.2908156,189.99,189.93,7.79464027]
[1735250325752,0.2908156,189.99,189.93,0.12549]
[1735250327575,0.2908156,189.99,189.91,7.79464027]
[1735250327780,0.2908156,189.99,189.9,7.79464027]
[1735250328847,0.2908156,189.99,189.91,0.12549]
[1735250330076,6.3087156,189.99,189.85,0.78968335]
[1735250330372,6.3087156,189.99,189.88,7.79464027]
[1735250330579,6.3087156,189.99,189.89,0.12549]
[1735250330776,3.9539,189.95,189.82,7.99014732]
[1735250330975,0.2908156,189.94,189.83,7.79464027]
[1735250331151,0.2908156,189.94,189.81,7.99014732]
[1735250331354,0.2908156,189.94,189.84,0.12549]
[1735250332776,3.9539,189.89,189.78,7.79464027]
[1735250333093,9.9718,189.87,189.76,7.79464027]
[1735250333262,0.2908156,189.86,189.77,7.79464027]
[1735250334690,0.2908156,189.86,189.78,7.79464027]
[1735250334980,0.2908156,189.86,189.77,7.79464027]
[1735250335460,0.2908156,189.86,189.79,0.12549]
[1735250335662,9.9718,189.87,189.81,7.79464027]
[1735250335959,3.9539,189.87,189.81,7.79464027]
[1735250337196,0.2908156,189.86,189.74,0.79009028]
[1735250337484,0.2908156,189.86,189.7,143.5595]
[1735250337485,6.0179,189.85,189.7,143.5595]
[1735250337685,0.2908156,189.84,189.74,7.79464027]
[1735250337892,3.9539,189.83,189.74,7.79464027]
[1735250338056,0.2908156,189.82,189.74,7.79464027]
[1735250338259,20.2908156,189.82,189.7,6.0595]
[1735250338490,20.2908156,189.82,189.7,7.79464027]
[1735250338892,20.2908156,189.82,189.71,0.12549]
[1735250339690,3.9539,189.76,189.65,7.79464027]
[1735250339990,0.2908156,189.75,189.64,7.79464027]
[1735250340687,0.2908156,189.75,189.62,7.79464027]
[1735250341196,0.2908156,189.75,189.63,0.12549]
[1735250341371,0.2908156,189.75,189.63,7.92013027]
[1735250342477,0.2908156,189.75,189.62,7.79464027]
[1735250342791,0.2908156,189.75,189.63,0.12549]
[1735250343634,0.2908156,189.75,189.63,7.79464027]
[1735250343791,0.2908156,189.75,189.65,7.79464027]
[1735250344477,0.2908156,189.75,189.64,7.79464027]
[1735250345892,0.2908156,189.75,189.66,0.12549]
[1735250346193,0.2908156,189.75,189.66,7.92013027]
[1735250347104,4.2447156,189.76,189.7,7.79464027]
[1735250347269,3.9539,189.76,189.72,0.12549]
[1735250349907,0.2908156,189.75,189.7,12.14489034]
[1735250350235,4.2447156,189.76,189.69,12.14489034]
[1735250350522,4.2447156,189.76,189.7,12.14489034]
[1735250350724,4.2447156,189.76,189.7,0.12549]
[1735250351425,3.9539,189.76,189.7,12.27038034]
[1735250353220,4.2447156,189.76,189.7,12.27038034]
[1735250353602,3.9539,189.76,189.72,12.27038034]
[1735250354734,3.9539,189.76,189.74,12.27038034]
[1735250354915,3.9539,189.76,189.74,0.12549]
[1735250355828,3.9539,189.76,189.73,0.12549]
[1735250356037,3.9539,189.76,189.73,12.27038034]
[1735250359831,3.7316,189.81,189.75,0.12549]
[1735250360034,3.7316,189.81,189.75,12.27038034]
[1735250360609,3.7316,189.81,189.75,0.12549]
[1735250361209,0.2908156,189.8,189.75,0.12549]
[1735250361611,0.2908156,189.8,189.74,0.12549]
[1735250364926,0.2908156,189.8,189.73,0.12549]
[1735250366918,0.2908156,189.8,189.74,12.27038034]
[1735250367538,3.7316,189.81,189.76,0.12549]
[1735250367741,3.7316,189.81,189.78,0.12549]
[1735250367953,3.7316,189.86,189.78,0.12549]
[1735250368252,0.2908156,189.85,189.78,0.12549]
[1735250369246,20.2908156,189.85,189.78,0.12549]
[1735250369951,20.2908156,189.85,189.73,7.76722388]
[1735250370442,20.2908156,189.85,189.75,0.12549]
[1735250372344,20.2908156,189.85,189.73,7.76722388]
[1735250372551,20.2908156,189.85,189.66,6.1669]
[1735250372552,20.0,189.83,189.66,6.1669]
[1735250372721,0.2908156,189.82,189.7,7.76722388]
[1735250373340,20.0,189.78,189.66,6.95747672]
[1735250373549,0.2908156,189.77,189.68,7.76722388]
[1735250375439,0.2908156,189.77,189.69,0.12549]
[1735250375633,0.2908156,189.77,189.69,7.89271388]
[1735250378252,3.9167,189.76,189.67,7.76722388]
[1735250378434,0.2908156,189.75,189.67,7.76722388]
[1735250378947,0.2908156,189.75,189.68,0.12549]
[1735250380316,0.2908156,189.75,189.66,7.76722388]
[1735250380523,6.2419,189.74,189.64,7.76722388]
[1735250380725,20.0,189.71,189.6,0.79081072]
[1735250380923,0.2908156,189.7,189.61,7.76722388]
[1735250382153,0.2908156,189.7,189.62,0.12549]
[1735250385479,0.2908156,189.7,189.61,0.12549]
[1735250386156,0.2908156,189.7,189.56,6.1669]
[1735250386348,3.6596,189.69,189.58,7.76722388]
[1735250386544,0.2908156,189.68,189.59,0.12549]
[1735250388576,6.5584,189.67,189.58,0.12549]
[1735250388781,0.2908156,189.66,189.58,7.89271388]
[1735250389082,0.2908156,189.66,189.6,0.12549]
[1735250389884,0.2908156,189.68,189.62,7.76722388]
[1735250390049,3.6596,189.69,189.64,7.76722388]
[1735250390251,3.6596,189.69,189.66,0.12549]
[1735250390450,3.6596,189.69,189.65,7.76722388]
[1735250390653,3.6596,189.69,189.64,7.76722388]
[1735250391189,3.6596,189.69,189.65,0.12549]
[1735250395494,3.6596,189.69,189.64,7.76722388]
[1735250395495,0.2908156,189.68,189.64,0.12549]
[1735250396213,0.2908156,189.68,189.63,0.12549]
[1735250397196,0.2908156,189.68,189.58,6.4384]
[1735250397385,0.2908156,189.68,189.61,7.76722388]
[1735250397997,0.2908156,189.68,189.62,0.12549]
[1735250398293,0.2908156,189.68,189.62,7.89271388]
[1735250398890,23.6596,189.69,189.62,7.89271388]
[1735250399179,3.6596,189.69,189.64,0.12549]
[1735250401497,3.6596,189.69,189.63,0.12549]
[1735250402295,3.6596,189.69,189.59,0.12549]
[1735250402502,0.2908156,189.68,189.59,7.89271388]
[1735250402795,0.2908156,189.68,189.59,7.76722388]
[1735250403500,0.2908156,189.68,189.54,0.79087342]
[1735250403741,0.2908156,189.68,189.58,7.76722388]
[1735250404000,0.2908156,189.68,189.57,7.76722388]
[1735250404170,0.2908156,189.68,189.56,7.76722388]
[1735250404369,20.0,189.66,189.56,7.76722388]
[1735250404600,0.2908156,189.65,189.56,7.76722388]
[1735250404970,0.2908156,189.65,189.57,7.76722388]
[1735250405583,0.2908156,189.66,189.57,0.12549]
[1735250405773,0.2908156,189.66,189.57,7.76722388]
[1735250405980,0.2908156,189.66,189.59,7.76722388]
[1735250406523,0.2908156,189.66,189.59,0.12549]
[1735250407005,0.2908156,189.66,189.6,7.89271388]
[1735250407185,3.6791,189.67,189.6,7.89271388]
[1735250409304,3.6791,189.67,189.61,7.76722388]
[1735250409504,3.6791,189.67,189.62,0.12549]
[1735250410810,3.6791,189.67,189.64,0.12549]
[1735250411114,3.6791,189.67,189.65,7.76722388]
[1735250412085,3.6791,189.67,189.61,0.12549]
[1735250412287,3.6791,189.67,189.61,7.89271388]
[1735250415306,3.6791,189.67,189.6,7.76722388]
[1735250416113,0.2908156,189.66,189.58,0.12549]
[1735250416290,0.2908156,189.66,189.58,7.89271388]
[1735250416494,0.2908156,189.66,189.57,7.76722388]
[1735250417615,0.2908156,189.66,189.58,0.12549]
[1735250417983,0.2908156,189.66,189.59,7.89271388]
[1735250419516,0.2908156,189.66,189.59,0.12549]
[1735250420694,0.2908156,189.66,189.58,0.12549]
[1735250421517,0.2908156,189.66,189.58,7.76722388]
[1735250421812,0.2908156,189.66,189.59,0.12549]
[1735250423529,0.2908156,189.66,189.6,0.12549]
[1735250423832,3.6791,189.67,189.62,0.12549]
[1735250424231,3.6791,189.67,189.62,7.89271388]
[1735250425626,3.6791,189.67,189.64,7.89271388]
[1735250425832,3.9093,189.72,189.67,0.12549]
[1735250425998,3.9093,189.72,189.67,7.89271388]
[1735250427525,3.9093,189.72,189.68,7.76722388]
[1735250427728,3.9093,189.72,189.69,7.89271388]
[1735250428639,3.6977,189.76,189.71,0.12549]
[1735250429030,0.2908156,189.75,189.65,7.76722388]
[1735250429326,3.6977,189.74,189.63,7.76722388]
[1735250429525,0.2908156,189.73,189.63,7.76722388]
[1735250429704,0.2908156,189.73,189.64,0.12549]
[1735250430408,0.2908156,189.73,189.64,7.89271388]
[1735250430627,0.2908156,189.73,189.65,7.89271388]
[1735250431904,20.2908156,189.73,189.65,7.89271388]
[1735250433811,20.2908156,189.73,189.65,0.12549]
[1735250434833,20.2908156,189.73,189.66,0.12549]
[1735250439030,20.2908156,189.73,189.65,7.76722388]
[1735250439031,3.6977,189.74,189.7,0.12549]
[1735250439333,3.6977,189.74,189.7,7.89271388]
[1735250440938,3.6977,189.74,189.71,7.76722388]
[1735250442119,3.6977,189.74,189.7,0.12549]
[1735250444938,3.6977,189.74,189.65,0.7907431]
[1735250445140,3.6977,189.74,189.71,0.12549]
[1735250446245,3.6977,189.74,189.72,7.76722388]
[1735250446426,3.6977,189.74,189.72,0.12549]
[1735250447240,3.6977,189.74,189.71,0.12549]
[1735250450635,3.6797,189.8,189.74,0.12549]
[1735250451123,0.2908156,189.79,189.74,0.12549]
[1735250451745,0.2908156,189.79,189.72,7.76722388]
[1735250451956,0.2908156,189.79,189.73,0.12549]
[1735250452250,3.6797,189.8,189.73,0.12549]
[1735250452418,3.6797,189.8,189.73,7.89271388]
[1735250452623,3.6797,189.8,189.74,0.12549]
[1735250452826,0.2908156,189.79,189.74,0.12549]
[1735250454933,3.6797,189.8,189.75,7.89271388]
[1735250455446,3.6797,189.8,189.77,0.12549]
[1735250455632,0.2908156,189.83,189.77,0.12549]
[1735250455821,20.0,189.84,189.78,7.76722388]
[1735250456024,0.2908156,189.91,189.83,0.12549]
[1735250456234,0.2908156,189.91,189.77,7.76722388]
[1735250456543,9.9573,189.9,189.77,7.76722388]
[1735250456743,0.2908156,189.89,189.78,0.12549]
[1735250457326,20.0,189.87,189.78,0.12549]
[1735250457663,0.2908156,189.86,189.78,0.12549]
[1735250458163,0.2908156,189.86,189.8,7.76722388]
[1735250458628,3.6797,189.9,189.83,7.89271388]
[1735250460555,3.6797,189.9,189.84,7.76722388]
[1735250461743,3.6797,189.9,189.85,7.76722388]
[1735250462144,3.8995156,189.94,189.85,7.76722388]
[1735250463268,20.0,189.92,189.85,7.76722388]
[1735250463470,3.8995156,189.94,189.86,7.89271388]
[1735250463669,3.8995156,189.94,189.88,0.12549]
[1735250464246,3.8995156,189.94,189.82,6.3829]
[1735250464451,3.8995156,189.94,189.84,7.76722388]
[1735250464759,3.8995156,189.94,189.85,0.12549]
[1735250465073,3.8995156,189.94,189.85,7.89271388]
[1735250465576,3.8995156,189.94,189.87,7.89271388]
[1735250465761,3.8995156,189.94,189.88,7.76722388]
[1735250467683,3.6087,189.94,189.88,7.76722388]
[1735250467850,20.0,189.96,189.9,0.12549]
[1735250468056,20.0,189.98,189.91,7.89271388]
[1735250468253,3.6087,189.99,189.91,7.89271388]
[1735250468472,0.2908156,189.98,189.91,7.89271388]
[1735250468768,0.2908156,189.98,189.85,23.6512]
[1735250468968,0.2908156,189.98,189.88,7.76722388]
[1735250469268,0.09804553,189.89,189.88,7.89271388]
[1735250470166,0.09804553,189.89,189.88,8.68252277]
[1735250470344,0.09804553,189.89,189.88,7.89271388]
[1735250470548,0.09804553,189.89,189.88,0.12549]
[1735250471578,0.09804553,189.89,189.88,7.89271388]
[1735250471983,0.09804553,189.89,189.88,0.12549]
[1735250472576,0.09804553,189.89,189.86,7.76722388]
[1735250472779,0.09804553,189.89,189.85,7.76722388]
[1735250473082,0.09804553,189.89,189.87,0.12549]
[1735250473880,0.09804553,189.89,189.88,0.12549]
[1735250474060,0.09804553,189.89,189.88,7.89271388]
[1735250477477,0.09804553,189.89,189.83,0.78981363]
[1735250477783,0.09804553,189.89,189.82,7.76722388]
[1735250477982,0.38886113,189.89,189.78,0.78988502]
[1735250478177,0.38886113,189.89,189.79,7.76722388]
[1735250478379,0.38886113,189.89,189.81,0.12549]
[1735250479087,0.38886113,189.89,189.8,7.76722388]
[1735250480287,0.38886113,189.89,189.81,0.12549]
[1735250481479,0.38886113,189.89,189.79,12.25901884]
[1735250481683,0.38886113,189.89,189.81,0.12549]
[1735250483894,0.38886113,189.89,189.79,12.13352884]
[1735250484182,0.38886113,189.89,189.76,12.13352884]
[1735250484183,20.0,189.85,189.76,12.13352884]
[1735250484387,4.0620156,189.84,189.77,0.12549]
[1735250485283,4.0620156,189.84,189.76,12.13352884]
[1735250485486,4.0620156,189.84,189.74,12.13352884]
[1735250485788,4.0620156,189.84,189.71,12.13352884]
[1735250486088,4.0620156,189.84,189.7,12.13352884]
[1735250486683,4.0620156,189.84,189.73,12.13352884]
[1735250486864,4.0620156,189.84,189.76,0.12549]
[1735250487184,4.0620156,189.84,189.76,12.25901884]
[1735250488079,4.0620156,189.84,189.76,0.12549]
[1735250489186,0.09813405,189.77,189.76,0.12549]
[1735250490589,0.09813405,189.77,189.74,12.13352884]
[1735250490788,0.09813405,189.77,189.75,12.92388949]
[1735250491086,0.09813405,189.77,189.76,0.12549]
[1735250491270,0.09813405,189.77,189.73,12.13352884]
[1735250491669,0.09813405,189.77,189.74,0.12549]
[1735250491985,0.09813405,189.77,189.74,12.25901884]
[1735250492791,0.09813405,189.77,189.76,12.25901884]
[1735250498312,0.09813405,189.77,189.76,0.12549]
[1735250498804,0.09813405,189.77,189.73,12.13352884]
[1735250499606,0.09813405,189.77,189.74,0.12549]
[1735250500196,0.09813405,189.77,189.76,7.89443016]
[1735250501087,0.09813405,189.77,189.76,8.68466611]
[1735250501291,0.09813405,189.77,189.76,7.89443016]
[1735250502896,0.11305105,189.79,189.78,20.12549]
[1735250503102,0.11430106,189.8,189.79,20.12549]
[1735250503280,0.11430106,189.8,189.79,58.9701908]
[1735250503488,0.10488687,189.84,189.81,20.12549]
[1735250503807,0.10488687,189.84,189.81,28.68425321]
[1735250504402,0.10488687,189.84,189.81,33.03849683]
[1735250504591,0.10488687,189.84,189.81,46.20949683]
[1735250505495,0.10488687,189.84,189.82,20.0]
[1735250505702,0.10488687,189.84,189.82,32.24867378]
[1735250508507,1.6614,189.93,189.83,0.12549]
[1735250508706,1.6614,189.93,189.89,12.12318378]
[1735250509209,0.11493635,189.9,189.89,12.24867378]
[1735250511109,0.11493635,189.9,189.84,20.0]
[1735250511283,0.11493635,189.9,189.84,12.91301115]
[1735250511683,0.11493635,189.9,189.87,12.12318378]
[1735250512297,0.11493635,189.9,189.87,0.12549]
[1735250512606,1.6614,189.89,189.83,12.12318378]
[1735250512908,1.6614,189.89,189.84,0.12549]
[1735250513405,1.6614,189.89,189.85,12.12318378]
[1735250513705,1.6614,189.89,189.84,12.24867378]
[1735250514604,1.6614,189.89,189.85,12.12318378]
[1735250516097,1.6614,189.89,189.86,0.12549]
[1735250516597,1.6614,189.89,189.86,12.24867378]
[1735250516796,1.6614,189.89,189.88,0.12549]
[1735250517407,1.6614,189.89,189.88,12.24867378]
[1735250517792,0.11493635,189.9,189.88,12.24867378]
[1735250518001,0.11493635,189.9,189.88,12.12318378]
[1735250518308,0.11493635,189.9,189.85,12.12318378]
[1735250518913,0.11493635,189.9,189.86,12.91311363]
[1735250520419,0.11493635,189.9,189.87,0.12549]
[1735250520600,0.11493635,189.9,189.88,12.12318378]
[1735250520909,0.11493635,189.9,189.87,13.03847195]
[1735250521110,0.11493635,189.9,189.85,12.12318378]
[1735250521303,1.5725,189.89,189.85,12.12318378]
[1735250521904,0.2908156,189.88,189.81,0.78977569]
[1735250522112,0.2908156,189.88,189.82,12.12318378]
[1735250522309,0.2908156,189.88,189.81,12.12318378]
[1735250522509,20.2908156,189.88,189.8,12.12318378]
[1735250522701,1.5725,189.87,189.78,12.12318378]
[1735250522901,0.2908156,189.86,189.78,12.12318378]
[1735250523842,0.2908156,189.86,189.79,0.12549]
[1735250524011,0.2908156,189.86,189.79,12.24867378]
[1735250524617,1.5725,189.87,189.81,12.24867378]
[1735250524923,1.5725,189.87,189.82,12.12318378]
[1735250526122,1.5725,189.87,189.84,0.12549]
[1735250526517,1.5725,189.87,189.85,12.24867378]
[1735250527703,1.5725,189.87,189.86,12.24867378]
[1735250527901,1.5725,189.87,189.86,13.03857127]
[1735250528100,1.5725,189.87,189.86,12.24867378]
[1735250528516,1.6282,189.91,189.87,0.12549]
[1735250528723,1.6282,189.91,189.83,6.0766]
[1735250528724,1.6282,189.91,189.9,12.24867378]
[1735250528920,1.6282,189.95,189.91,0.12549]
[1735250529124,1.6282,189.95,189.93,0.12549]
[1735250529319,1.6282,189.95,189.93,12.24867378]
[1735250529523,1.6282,189.95,189.94,12.24867378]
[1735250531346,20.0,190.02,189.95,0.12549]
[1735250531502,20.0,190.02,189.95,12.24867378]
[1735250531701,20.0,190.02,189.97,0.12549]
[1735250533239,1.6282,190.0,189.92,12.12318378]
[1735250533407,0.2908156,189.99,189.91,12.12318378]
[1735250533614,0.2908156,189.99,189.92,0.12549]
[1735250533911,0.2908156,189.99,189.91,12.12318378]
[1735250534116,0.2908156,189.99,189.86,20.78963181]
[1735250534323,0.2908156,189.99,189.89,12.12318378]
[1735250534504,0.2908156,189.99,189.9,12.12318378]
[1735250535329,0.2908156,189.99,189.91,0.12549]
[1735250535635,0.2908156,189.99,189.91,12.24867378]
[1735250536012,0.2908156,189.99,189.93,0.12549]
[1735250537631,1.6282,190.0,189.93,0.12549]
[1735250538507,0.2908156,189.99,189.93,0.12549]
[1735250540939,0.2908156,189.99,189.93,12.12318378]
[1735250541719,0.2908156,189.99,189.93,0.12549]
[1735250542616,0.2908156,189.99,189.93,12.12318378]
[1735250542936,0.2908156,189.99,189.93,0.12549]
[1735250543439,1.6282,190.0,189.95,0.12549]
[1735250543627,0.2908156,189.99,189.93,12.12318378]
[1735250543835,0.2908156,189.99,189.92,12.12318378]
[1735250545640,0.2908156,189.99,189.92,0.12549]
[1735250546434,0.2908156,189.99,189.92,12.24867378]
[1735250546952,1.6282,190.0,189.93,12.12318378]
[1735250547245,0.2908156,189.99,189.93,12.12318378]
[1735250548244,0.2908156,189.99,189.93,0.12549]
[1735250549233,0.2908156,189.99,189.91,12.12318378]
[1735250550244,0.2908156,189.99,189.92,0.12549]
[1735250552545,1.6282,190.0,189.95,7.88203297]
[1735250552741,1.6282,190.0,189.96,7.88203297]
[1735250553040,1.6282,190.0,189.95,7.75654297]
[1735250554341,1.6282,190.0,189.96,0.12549]
[1735250554548,1.6282,190.0,189.96,7.88203297]
[1735250555142,1.6282,190.0,189.91,0.78945994]
[1735250555459,1.6282,190.0,189.94,7.75654297]
[1735250555617,1.6282,190.0,189.95,0.12549]
[1735250556746,0.2908156,189.99,189.9,7.75654297]
[1735250556930,0.2908156,189.99,189.91,7.75654297]
[1735250557444,0.2908156,189.99,189.93,7.75654297]
[1735250557651,0.2908156,189.99,189.92,7.75654297]
[1735250558029,1.6459,189.97,189.86,0.78962207]
[1735250558342,1.6459,189.94,189.83,12.12770463]
[1735250558548,1.9367156,189.93,189.8,12.12770463]
[1735250558735,20.0,189.89,189.8,12.12770463]
[1735250558935,1.6459,189.87,189.81,12.25319463]
[1735250559143,1.6459,189.87,189.81,0.12549]
[1735250559538,1.6459,189.87,189.82,0.12549]
[1735250560035,1.6459,189.87,189.82,12.25319463]
[1735250560238,1.6459,189.87,189.82,12.12770463]
[1735250560433,1.6459,189.87,189.8,12.12770463]
[1735250561528,1.6459,189.87,189.8,0.12549]
[1735250561734,0.2908156,189.86,189.79,12.12770463]
[1735250563318,0.2908156,189.86,189.79,0.12549]
[1735250565147,6.1928,189.84,189.74,12.12770463]
[1735250565357,1.5039,189.8,189.73,12.12770463]
[1735250565562,1.7947156,189.8,189.73,12.12770463]
[1735250565946,1.7947156,189.8,189.74,0.12549]
[1735250567057,1.5039,189.8,189.74,0.12549]
[1735250569643,1.5039,189.8,189.75,0.12549]
[1735250570829,1.5039,189.8,189.76,0.12549]
[1735250576789,1.5039,189.8,189.78,0.12549]
[1735250577458,1.5039,189.8,189.77,0.12549]
[1735250579291,1.5039,189.8,189.75,12.12770463]
[1735250579592,1.5039,189.8,189.74,12.12770463]
[1735250579882,1.5039,189.8,189.75,0.12549]
[1735250581696,1.5039,189.8,189.73,7.77050459]
[1735250581917,1.5039,189.8,189.7,0.79033029]
[1735250582205,1.5681,189.78,189.66,8.56096629]
[1735250582506,20.0,189.74,189.65,7.77050459]
[1735250582667,1.5681,189.72,189.65,7.77050459]
[1735250583070,1.5681,189.72,189.61,8.56120094]
[1735250583071,0.2908156,189.71,189.61,8.56120094]
[1735250583301,0.2908156,189.71,189.61,7.77050459]
[1735250584277,1.5681,189.7,189.54,0.79089776]
[1735250584485,1.5681,189.65,189.56,12.15992233]
[1735250584657,1.8589156,189.65,189.57,12.15992233]
[1735250584864,1.5681,189.65,189.58,0.12549]
[1735250585060,1.5681,189.65,189.63,12.28541233]
[1735250586182,1.5681,189.65,189.63,0.12549]
[1735250586381,1.5681,189.65,189.63,12.28541233]
[1735250586796,1.5681,189.65,189.64,12.28541233]
[1735250587005,1.5681,189.69,189.65,0.12549]
[1735250587205,1.5681,189.69,189.68,12.28541233]
[1735250590310,1.5681,189.69,189.61,137.5]
[1735250590490,1.5681,189.69,189.62,12.15992233]
[1735250591612,1.5681,189.69,189.64,0.12549]
[1735250592318,1.5681,189.69,189.59,12.15992233]
[1735250592319,8.1886,189.69,189.59,12.15992233]
[1735250592629,1.5681,189.65,189.56,12.15992233]
[1735250592785,0.2908156,189.64,189.56,12.15992233]
[1735250592984,0.2908156,189.64,189.57,0.12549]
[1735250593722,0.2908156,189.64,189.56,12.15992233]
[1735250594615,0.2908156,189.64,189.58,12.15992233]
[1735250594803,1.5681,189.65,189.59,0.12549]
[1735250595120,1.8589156,189.65,189.58,0.12549]
[1735250595702,1.5681,189.65,189.58,12.15992233]
[1735250597343,1.8589156,189.65,189.58,0.12549]
[1735250600826,1.8589156,189.65,189.52,0.79105186]
[1735250601002,1.8589156,189.65,189.5,12.15992233]
[1735250601325,1.5544,189.6,189.5,12.15992233]
[1735250601529,0.2908156,189.59,189.5,12.15992233]
[1735250601824,1.5544,189.58,189.48,12.15992233]
[1735250602031,1.5544,189.56,189.47,12.15992233]